bitfinex/quotes_BTCUSD_20250530
["timestamp","ask_amount","ask_price","bid_price","bid_amount"]
[1748591554873,0.4307772,104950.0,104940.0,0.00073436]
[1748591559377,0.4307772,104950.0,104940.0,0.00059136]
[1748591560290,0.3907772,104950.0,104940.0,0.00059136]
[1748591562786,0.6950572,104950.0,104940.0,0.00059136]
[1748591563211,0.7450572,104950.0,104940.0,0.00059136]
[1748591563834,0.75622438,104950.0,104940.0,0.00059136]
[1748591564023,0.75622328,104950.0,104940.0,0.00059136]
[1748591564229,1.11778328,104950.0,104940.0,0.00059136]
[1748591564386,1.12274915,104950.0,104940.0,0.00059136]
[1748591564598,0.29711416,104940.0,104930.0,0.0001]
[1748591564853,0.48488811,104940.0,104930.0,0.00019381]
[1748591565036,0.43488811,104940.0,104930.0,0.00019381]
[1748591565210,0.48488811,104940.0,104930.0,0.00019381]
[1748591565412,0.47488811,104940.0,104930.0,0.00019381]
[1748591565988,0.47588811,104940.0,104930.0,0.00119381]
[1748591566778,0.37916811,104940.0,104930.0,0.00119381]
[1748591566954,0.31106811,104940.0,104930.0,0.00119381]
[1748591567386,0.33136811,104940.0,104930.0,0.00119381]
[1748591568203,0.43136811,104940.0,104930.0,0.00119381]
[1748591571278,0.20013323,104930.0,104920.0,0.0001]
[1748591571458,0.29118718,104930.0,104920.0,0.0001]
[1748591572273,0.25118718,104930.0,104920.0,0.0001]
[1748591572527,0.26271716,104930.0,104920.0,0.0011]
[1748591572923,0.28171716,104930.0,104920.0,0.0011]
[1748591573126,0.29981716,104930.0,104920.0,0.0011]
[1748591574636,0.30877488,104930.0,104920.0,0.0011]
[1748591575418,0.31997203,104930.0,104920.0,0.0011]
[1748591575626,0.32003854,104930.0,104920.0,0.0011]
[1748591578432,0.33501548,104930.0,104920.0,0.0011]
[1748591579510,0.32378138,104930.0,104920.0,0.0011]
[1748591579964,0.37377967,104930.0,104920.0,0.0011]
[1748591580166,0.67793967,104930.0,104920.0,0.0011]
[1748591580366,0.66196273,104930.0,104920.0,0.0001]
[1748591580988,0.66296273,104930.0,104920.0,0.0001]
[1748591581200,0.66196273,104930.0,104920.0,0.0001]
[1748591581401,0.66296273,104930.0,104920.0,0.0001]
[1748591581615,0.66096273,104930.0,104920.0,0.0001]
[1748591581822,0.67496273,104930.0,104920.0,0.0001]
[1748591582021,0.68696273,104930.0,104920.0,0.0001]
[1748591582465,0.63696273,104930.0,104920.0,0.0001]
[1748591583707,0.65192603,104930.0,104920.0,0.0001]
[1748591584368,0.65574103,104930.0,104920.0,0.0001]
[1748591584577,0.64077773,104930.0,104920.0,0.0001]
[1748591586309,0.0863,104910.0,104900.0,0.0002]
[1748591586533,0.50044577,104910.0,104900.0,0.0002]
[1748591586743,0.8448309,104910.0,104900.0,0.0002]
[1748591586951,0.8548309,104910.0,104900.0,0.0002]
[1748591587158,0.91945251,104910.0,104900.0,0.0002]
[1748591587860,0.92145251,104910.0,104900.0,0.0002]
[1748591588082,0.91945251,104910.0,104900.0,0.0002]
[1748591588306,0.94545251,104910.0,104900.0,0.0002]
[1748591588517,0.20019046,104900.0,104890.0,0.0001]
[1748591588719,0.70687747,104900.0,104890.0,0.0001]
[1748591588963,0.70358513,104900.0,104890.0,0.0001]
[1748591590334,0.24750955,104890.0,104880.0,0.0001]
[1748591590566,0.49875227,104890.0,104880.0,0.0001]
[1748591590775,0.46574521,104890.0,104880.0,0.0001]
[1748591591201,0.46530957,104890.0,104880.0,0.0001]
[1748591591472,0.20026683,104860.0,104850.0,0.07527787]
[1748591591690,0.34132078,104860.0,104850.0,0.08522526]
[1748591592359,0.34132078,104860.0,104850.0,0.0005896]
[1748591592571,0.37862078,104860.0,104850.0,0.0005896]
[1748591594232,0.37962078,104860.0,104850.0,0.0005896]
[1748591594742,0.32962078,104860.0,104850.0,0.0005896]
[1748591594945,0.38062078,104860.0,104850.0,0.0005896]
[1748591595166,0.34332078,104860.0,104850.0,0.0005896]
[1748591595380,0.29332078,104860.0,104850.0,0.0005896]
[1748591595877,0.21226683,104860.0,104850.0,0.0382896]
[1748591596991,0.21226683,104860.0,104850.0,0.4382896]
[1748591597206,0.21226683,104860.0,104850.0,0.48213856]
[1748591597413,0.21226683,104860.0,104850.0,0.57877856]
[1748591597625,0.21226683,104860.0,104850.0,0.17877856]
[1748591597877,0.21226683,104860.0,104850.0,0.0382896]
[1748591599416,0.21134683,104860.0,104850.0,0.0382896]
[1748591599621,0.20134683,104860.0,104850.0,0.0382896]
[1748591600275,0.33010078,104860.0,104850.0,0.0005896]
[1748591601204,0.31130078,104860.0,104850.0,0.0005896]
[1748591601431,0.29240078,104860.0,104850.0,0.0005896]
[1748591601662,0.38904078,104860.0,104850.0,0.0005896]
[1748591603268,0.47664078,104860.0,104850.0,0.0005896]
[1748591603936,0.47464078,104860.0,104850.0,0.0005896]
[1748591604167,0.50064078,104860.0,104850.0,0.0005896]
[1748591605362,0.50068078,104860.0,104850.0,0.0005896]
[1748591606451,0.40400078,104860.0,104850.0,0.0005896]
[1748591606657,0.50068078,104860.0,104850.0,0.0005896]
[1748591607947,0.553192,104860.0,104850.0,0.0005896]
[1748591608200,0.29718593,104850.0,104840.0,0.0002]
[1748591608429,0.37823988,104850.0,104840.0,0.00034672]
[1748591608877,0.41321548,104850.0,104840.0,0.00034672]
[1748591609088,0.44185048,104850.0,104840.0,0.00034672]
[1748591609305,0.36805652,104850.0,104840.0,0.00034672]
[1748591609524,0.3829547,104850.0,104840.0,0.00034672]
[1748591610597,0.33942152,104850.0,104840.0,0.00034672]
[1748591610777,0.33942152,104850.0,104810.0,0.0001]
[1748591610778,0.24768296,104820.0,104810.0,0.0001]
[1748591611030,0.43525691,104820.0,104810.0,0.0001]
[1748591611471,0.20036237,104810.0,104800.0,0.07643041]
[1748591611699,0.20036237,104810.0,104800.0,0.12248345]
[1748591612368,0.21036237,104810.0,104800.0,0.21900345]
[1748591613451,0.00610296,104850.0,104810.0,0.19080583]
[1748591613703,0.01600051,104900.0,104810.0,0.19080583]
[1748591613933,0.00953043,104920.0,104890.0,0.00953379]
[1748591614154,0.00953043,104920.0,104870.0,0.19065631]
[1748591614155,0.2097029,104910.0,104900.0,0.01238246]
[1748591614387,0.01906277,104910.0,104900.0,0.01238246]
[1748591614609,0.35291342,104910.0,104900.0,0.09105395]
[1748591614824,0.35291342,104910.0,104900.0,0.10015934]
[1748591614825,0.2097029,104910.0,104900.0,0.10015934]
[1748591615037,0.43106331,104910.0,104900.0,0.10015934]
[1748591615253,0.09652,104920.0,104900.0,0.00910539]
[1748591615464,0.04017437,104910.0,104890.0,0.20973905]
[1748591615684,0.02097437,104910.0,104890.0,0.00304887]
[1748591615909,0.09652,104920.0,104890.0,0.00304887]
[1748591616359,0.30525613,104910.0,104890.0,0.28715958]
[1748591616572,0.30525613,104910.0,104890.0,0.33337908]
[1748591616787,0.30525613,104910.0,104900.0,0.005]
[1748591617065,0.30525613,104910.0,104900.0,0.19565776]
[1748591617285,0.30525613,104910.0,104900.0,0.4162779]
[1748591617286,0.001,104910.0,104900.0,0.4162779]
[1748591617520,0.30574846,104930.0,104920.0,0.19062142]
[1748591617738,0.30574846,104930.0,104920.0,0.28167537]
[1748591618349,0.02859174,104920.0,104910.0,0.19063959]
[1748591618614,0.01906095,104920.0,104910.0,0.28169354]
[1748591618838,0.09531315,104920.0,104910.0,0.34191252]
[1748591619068,0.28593457,104920.0,104910.0,0.06021898]
[1748591619279,0.18600615,104920.0,104900.0,0.00985304]
[1748591619519,0.10721822,104920.0,104910.0,0.19063959]
[1748591619734,0.00149233,104930.0,104920.0,0.21921353]
[1748591619963,0.00149233,104930.0,104920.0,0.4027787]
[1748591620208,0.07635077,104960.0,104950.0,0.21915087]
[1748591620423,0.09540428,104960.0,104950.0,0.19056693]
[1748591620650,0.00873056,105000.0,104980.0,0.19049283]
[1748591620872,0.09530045,104990.0,104980.0,0.28154678]
[1748591621094,0.20956326,104980.0,104960.0,0.19050105]
[1748591621322,0.00952507,104980.0,104970.0,0.19053062]
[1748591621548,0.26689426,104990.0,104980.0,0.19051247]
[1748591621549,0.08592446,104990.0,104980.0,0.19051247]
[1748591621775,0.00014773,104990.0,104980.0,0.63739719]
[1748591621983,0.10447319,105030.0,105020.0,0.19043991]
[1748591621984,0.10447265,105030.0,105020.0,0.19043991]
[1748591622219,0.1127522,105030.0,105020.0,0.20948344]
[1748591622433,0.0762522,105030.0,105020.0,0.30064162]
[1748591622650,0.0762522,105030.0,105020.0,0.33551628]
[1748591622872,0.0762522,105030.0,105020.0,0.03487466]
[1748591622873,0.29523614,105030.0,105020.0,0.03487466]
[1748591623085,0.29523614,105030.0,105010.0,0.19045694]
[1748591623086,0.29549497,105030.0,105010.0,0.19045694]
[1748591623296,0.0763996,105030.0,105020.0,0.30978814]
[1748591623599,0.0001474,105030.0,105020.0,0.3195802]
[1748591623799,0.0001474,105030.0,105020.0,0.3289728]
[1748591623800,0.00966767,105030.0,105020.0,0.3289728]
[1748591624030,0.03822983,105030.0,105020.0,0.09105395]
[1748591624249,0.20961089,105030.0,105020.0,0.12015729]
[1748591624474,0.20961089,105030.0,105020.0,0.02910334]
[1748591624697,0.20961089,105030.0,105010.0,0.42372]
[1748591624698,0.19996172,105020.0,105010.0,0.42372]
[1748591624919,0.19996172,105020.0,105010.0,0.19529395]
[1748591625366,0.19996172,105020.0,105000.0,0.51592]
[1748591625367,0.19998077,105010.0,105000.0,0.51592]
[1748591625589,0.19998077,105010.0,105000.0,0.4652719]
[1748591625808,0.21778077,105010.0,105000.0,0.4652719]
[1748591626260,0.21778077,105010.0,105000.0,0.0535919]
[1748591626474,0.21778077,105010.0,104980.0,0.42328]
[1748591626475,0.20954312,104990.0,104980.0,0.42328]
[1748591626678,0.20954312,104990.0,104980.0,0.51429395]
[1748591626904,0.20954312,104990.0,104970.0,0.00939928]
[1748591626905,0.20958303,104970.0,104960.0,0.41152]
[1748591627120,0.20958303,104970.0,104960.0,0.50257395]
[1748591627333,0.20958303,104970.0,104960.0,0.92573395]
[1748591627544,0.20958303,104970.0,104960.0,1.01824517]
[1748591628847,0.20958303,104970.0,104960.0,1.03763205]
[1748591629060,0.20958303,104970.0,104960.0,1.03729978]
[1748591629487,0.20958303,104970.0,104960.0,0.20309978]
[1748591629704,0.20958303,104970.0,104960.0,0.11058856]
[1748591629966,0.22738303,104970.0,104960.0,0.00514773]
[1748591630184,0.22938303,104970.0,104960.0,0.01014773]
[1748591630393,0.24728303,104970.0,104960.0,0.01014773]
[1748591630816,0.24728303,104970.0,104960.0,0.00514773]
[1748591630817,0.24628303,104970.0,104960.0,0.00514773]
[1748591631199,0.24528303,104970.0,104960.0,0.00014773]
[1748591631453,0.24628303,104970.0,104960.0,0.00414773]
[1748591631661,0.24528303,104970.0,104960.0,0.00014773]
[1748591632680,0.24628303,104970.0,104960.0,0.00514773]
[1748591632908,0.33733698,104970.0,104960.0,0.00514773]
[1748591633286,0.33633698,104970.0,104960.0,0.00014773]
[1748591634077,0.33733698,104970.0,104960.0,0.00214773]
[1748591635936,0.20964296,104940.0,104930.0,0.83268]
[1748591636154,0.20964296,104940.0,104930.0,1.00700195]
[1748591636384,0.20964296,104940.0,104930.0,0.083268]
[1748591636611,0.20013323,104930.0,104920.0,0.42104]
[1748591636839,0.20013323,104930.0,104920.0,0.51205395]
[1748591637262,0.21973323,104930.0,104920.0,0.09105395]
[1748591637893,0.21988044,104930.0,104920.0,0.09105395]
[1748591638092,0.21988044,104930.0,104920.0,0.14315271]
[1748591638297,0.22088044,104930.0,104920.0,0.05809876]
[1748591638509,0.22088044,104930.0,104920.0,0.006]
[1748591638924,0.02973678,104930.0,104920.0,0.1184984]
[1748591639195,0.21081042,104930.0,104920.0,0.09705395]
[1748591639623,0.17081042,104930.0,104920.0,0.1158572]
[1748591640057,0.17081042,104930.0,104920.0,0.17279879]
[1748591640287,0.17181042,104930.0,104920.0,0.17279879]
[1748591640504,0.02006023,104930.0,104920.0,0.372951]
[1748591640719,0.22019337,104930.0,104920.0,0.38009938]
[1748591640945,0.001,104930.0,104920.0,0.38962999]
[1748591641169,0.02858847,104930.0,104920.0,0.38009911]
[1748591641377,0.02858847,104930.0,104920.0,0.38314656]
[1748591642008,0.01905877,104930.0,104920.0,0.40220751]
[1748591642224,0.03811808,104930.0,104920.0,0.40220751]
[1748591642447,0.02858847,104930.0,104920.0,0.40539687]
[1748591642658,0.03811899,104930.0,104920.0,0.38633638]
[1748591642895,0.03811899,104930.0,104920.0,0.71788797]
[1748591643356,0.03811899,104930.0,104920.0,0.72535759]
[1748591643577,0.20966311,104930.0,104920.0,0.18093336]
[1748591643784,0.20966311,104930.0,104920.0,0.11890465]
[1748591643989,0.20966311,104930.0,104920.0,0.43446465]
[1748591644214,0.20966311,104930.0,104920.0,0.0278507]
[1748591644420,0.22886311,104930.0,104920.0,0.0278507]
[1748591644626,0.22886311,104930.0,104920.0,0.3433307]
[1748591644834,0.22886311,104930.0,104920.0,0.38899714]
[1748591645047,0.22886311,104930.0,104920.0,0.07046969]
[1748591645254,0.22886311,104930.0,104920.0,0.02480325]
[1748591645467,0.24866311,104930.0,104920.0,0.34004325]
[1748591646102,0.24866311,104930.0,104920.0,0.32108]
[1748591646732,0.20866311,104930.0,104920.0,0.32108]
[1748591648195,0.20866311,104930.0,104920.0,0.33967885]
[1748591648417,0.20866311,104930.0,104920.0,0.70973552]
[1748591648418,0.00953007,104930.0,104920.0,0.70973552]
[1748591648630,0.19060325,104930.0,104920.0,0.7097357]
[1748591648849,0.19058509,104940.0,104930.0,0.00953007]
[1748591648850,0.20964332,104940.0,104930.0,0.00953007]
[1748591649073,0.20966311,104930.0,104920.0,0.55364239]
[1748591649286,0.20966311,104930.0,104920.0,0.121915]
[1748591649287,0.20013332,104930.0,104920.0,0.121915]
[1748591649505,0.20013332,104930.0,104920.0,0.53758038]
[1748591650587,0.20013332,104930.0,104920.0,0.7282018]
[1748591650823,0.19158509,104940.0,104920.0,0.75679318]
[1748591650824,0.001,104940.0,104920.0,0.75679318]
[1748591651032,0.02858612,104940.0,104930.0,0.31262868]
[1748591651241,0.02858594,104940.0,104930.0,0.31329407]
[1748591651449,0.01905732,104940.0,104930.0,0.31329343]
[1748591651683,0.20964305,104940.0,104930.0,0.09731615]
[1748591651902,0.01905741,104940.0,104930.0,0.31889083]
[1748591652080,0.01905741,104940.0,104930.0,0.3165086]
[1748591652310,0.20009527,104950.0,104930.0,0.30697862]
[1748591652518,0.01905714,104940.0,104930.0,0.31650805]
[1748591652704,0.20967246,104950.0,104940.0,0.42660925]
[1748591652907,0.01910499,104950.0,104940.0,0.72082485]
[1748591653109,0.20967237,104950.0,104940.0,0.5239254]
[1748591653313,0.2001443,104950.0,104940.0,0.51439915]
[1748591653478,0.2197443,104950.0,104940.0,0.51439915]
[1748591653883,0.2197443,104950.0,104940.0,0.51739915]
[1748591653884,0.1797443,104950.0,104940.0,0.51739915]
[1748591654086,0.1807443,104950.0,104940.0,0.51739915]
[1748591654323,0.2006443,104950.0,104940.0,0.52099915]
[1748591654734,0.2006443,104950.0,104940.0,0.20691915]
[1748591655072,0.2006443,104950.0,104940.0,0.57996919]
[1748591655268,0.20942986,104950.0,104940.0,0.17813314]
[1748591655507,0.20942998,104950.0,104940.0,0.17813314]
[1748591655714,0.20943189,104950.0,104940.0,0.48879524]
[1748591656169,0.20943853,104950.0,104940.0,0.49193314]
[1748591656428,0.20943904,104950.0,104940.0,0.49193314]
[1748591656860,0.2006443,104950.0,104940.0,0.49193314]
[1748591657288,0.2006443,104950.0,104940.0,0.4962134]
[1748591657510,0.1817443,104950.0,104940.0,0.49622917]
[1748591657719,0.1929249,104950.0,104940.0,0.18242917]
[1748591657942,0.20935051,104950.0,104940.0,0.49582917]
[1748591658152,0.20935051,104950.0,104940.0,0.49574917]
[1748591658391,0.20934901,104950.0,104940.0,0.49251578]
[1748591658615,0.2005443,104950.0,104940.0,0.49251578]
[1748591659075,0.20934897,104950.0,104940.0,0.49251578]
[1748591659331,0.20935195,104950.0,104940.0,0.49251578]
[1748591660227,0.20935195,104950.0,104940.0,0.17919578]
[1748591660444,0.20935445,104950.0,104940.0,0.49207578]
[1748591660913,0.20935458,104950.0,104940.0,0.49207578]
[1748591661125,0.16935452,104950.0,104940.0,0.49207578]
[1748591661330,0.1717289,104950.0,104940.0,0.49207578]
[1748591661534,0.1717289,104950.0,104940.0,0.07659578]
[1748591661763,0.1717289,104950.0,104940.0,0.49179571]
[1748591662254,0.16291867,104950.0,104940.0,0.49179571]
[1748591662472,0.16291867,104950.0,104940.0,0.38895571]
[1748591662697,0.17172938,104950.0,104940.0,0.39219256]
[1748591662917,0.16291867,104950.0,104940.0,0.3879123]
[1748591663139,0.17172893,104950.0,104940.0,0.3878723]
[1748591663358,0.17172893,104950.0,104940.0,0.3878323]
[1748591663806,0.16291867,104950.0,104940.0,0.3878323]
[1748591664024,0.17172964,104950.0,104940.0,0.3878323]
[1748591664246,0.17172964,104950.0,104940.0,0.0755523]
[1748591664535,0.17172964,104950.0,104940.0,0.3876323]
[1748591664745,0.17172968,104950.0,104940.0,0.38439545]
[1748591664960,0.17172942,104950.0,104940.0,0.07231545]
[1748591665161,0.17172881,104950.0,104940.0,0.07231545]
[1748591665517,0.16291867,104950.0,104940.0,0.07231545]
[1748591665724,0.26278234,104950.0,104940.0,0.01004807]
[1748591665946,0.25159825,104950.0,104940.0,0.01004807]
[1748591666168,0.25159825,104950.0,104940.0,0.007]
[1748591666993,0.25059825,104950.0,104940.0,0.004]
[1748591667206,0.24616293,104930.0,104920.0,0.43291885]
[1748591667419,0.24616293,104930.0,104920.0,0.48416033]
[1748591668035,0.20616293,104930.0,104920.0,0.48416033]
[1748591668241,0.20616293,104930.0,104920.0,0.48092404]
[1748591668457,0.22522261,104930.0,104920.0,0.48092404]
[1748591669077,0.22722261,104930.0,104920.0,0.48892404]
[1748591669424,0.22722261,104930.0,104920.0,0.48836404]
[1748591669718,0.22722261,104930.0,104920.0,0.05600519]
[1748591669947,0.22722261,104930.0,104920.0,0.008]
[1748591669948,0.31827656,104930.0,104920.0,0.008]
[1748591670638,0.2374523,104920.0,104910.0,0.00913366]
[1748591670874,0.40475845,104920.0,104910.0,0.00913366]
[1748591671086,0.2374523,104920.0,104910.0,0.00913366]
[1748591671984,0.2374523,104920.0,104910.0,0.01113366]
[1748591672916,0.2384523,104920.0,104910.0,0.01413366]
[1748591673134,0.2384523,104920.0,104910.0,0.04663103]
[1748591676377,0.2384523,104920.0,104910.0,0.01413366]
[1748591676589,0.32950625,104920.0,104910.0,0.01413366]
[1748591678570,0.32850625,104920.0,104910.0,0.01113366]
[1748591678784,0.32850625,104920.0,104910.0,0.00913366]
[1748591678991,0.2444523,104920.0,104910.0,0.00913366]
[1748591682739,0.2264523,104920.0,104910.0,0.00913366]
[1748591682945,0.2071523,104920.0,104910.0,0.00913366]
[1748591683153,0.2071523,104920.0,104910.0,0.31841366]
[1748591683363,0.2071523,104920.0,104910.0,0.36046131]
[1748591683795,0.2051523,104920.0,104910.0,0.36046131]
[1748591684009,0.2001523,104920.0,104910.0,0.36046131]
[1748591684230,0.2011523,104920.0,104910.0,0.36046131]
[1748591684925,0.2031523,104920.0,104910.0,0.36146131]
[1748591685571,0.1631523,104920.0,104910.0,0.36146131]
[1748591685780,0.17268318,104920.0,104910.0,0.36146131]
[1748591687262,0.17268318,104920.0,104910.0,0.05218131]
[1748591687511,0.29110975,104920.0,104910.0,0.01013366]
[1748591687729,0.28873538,104920.0,104910.0,0.01013366]
[1748591688387,0.33649999,104960.0,104910.0,0.01013366]
[1748591688388,0.00952616,104970.0,104950.0,0.20009482]
[1748591688614,0.04932426,104990.0,104980.0,0.01905097]
[1748591688829,0.00952399,104990.0,104980.0,0.32181674]
[1748591689068,0.00952399,104990.0,104980.0,0.32181692]
[1748591689290,0.20003345,105000.0,104990.0,0.21906693]
[1748591689291,0.00952299,105000.0,104990.0,0.21906693]
[1748591689510,0.05594516,105010.0,104990.0,0.21906693]
[1748591689511,0.19998022,105010.0,104990.0,0.50346237]
[1748591689723,0.02856978,105000.0,104990.0,0.52574114]
[1748591689933,0.0380934,105000.0,104990.0,1.03706114]
[1748591690155,0.0380934,105000.0,104990.0,1.075065]
[1748591690156,0.00014051,105000.0,104990.0,1.075065]
[1748591690371,0.01918694,105000.0,104990.0,1.074985]
[1748591690586,0.02018694,105000.0,104990.0,1.075985]
[1748591690800,0.02018694,105000.0,104990.0,1.07596993]
[1748591691022,0.02871056,105000.0,104990.0,1.06544585]
[1748591691254,0.03823436,105000.0,104990.0,1.05270427]
[1748591691473,0.21918675,105000.0,104990.0,0.86201039]
[1748591691693,0.22018675,105000.0,104990.0,0.87753492]
[1748591692122,0.22018675,105000.0,104990.0,1.06802925]
[1748591692331,0.21166367,105000.0,104990.0,1.08055369]
[1748591692793,0.03071038,105000.0,104990.0,1.09007741]
[1748591693012,0.23071037,105000.0,104990.0,0.45235259]
[1748591693224,0.22118729,105000.0,104990.0,0.4618773]
[1748591693425,0.22118729,105000.0,104990.0,1.07085607]
[1748591693898,0.22118729,105000.0,104990.0,1.08038042]
[1748591694118,0.03071092,105000.0,104990.0,1.09942876]
[1748591694354,0.0116635,105000.0,104990.0,1.09942876]
[1748591694575,0.04023355,105000.0,104990.0,1.09942876]
[1748591694795,0.24023426,105000.0,104990.0,1.07085607]
[1748591695029,0.23071118,105000.0,104990.0,1.08002051]
[1748591695243,0.23071118,105000.0,104990.0,1.08954477]
[1748591695459,0.22118783,105000.0,104990.0,1.08002051]
[1748591695898,0.22118783,105000.0,104990.0,1.22006624]
[1748591696115,0.22118783,105000.0,104990.0,1.22006633]
[1748591696321,0.21166421,105000.0,104990.0,1.21702088]
[1748591696522,0.21166421,105000.0,104990.0,1.22664514]
[1748591696731,0.02118802,105000.0,104990.0,1.21712088]
[1748591696943,0.21166421,105000.0,104990.0,1.21543517]
[1748591697153,0.21166421,105000.0,104990.0,1.22495952]
[1748591697369,0.21166421,105000.0,104990.0,1.22505952]
[1748591697580,0.21166421,105000.0,104990.0,1.22515952]
[1748591697788,0.21166421,105000.0,104990.0,1.21563517]
[1748591697999,0.2021405,105000.0,104990.0,0.17801287]
[1748591698202,0.2021405,105000.0,104990.0,0.99733287]
[1748591698404,0.2021405,105000.0,104990.0,0.58926655]
[1748591698643,0.2021405,105000.0,104990.0,1.00675126]
[1748591698855,0.1926167,105000.0,104990.0,1.02569522]
[1748591699272,0.1926167,105000.0,104990.0,0.20637522]
[1748591699493,0.1926167,105000.0,104990.0,1.02553522]
[1748591700361,0.2315167,105000.0,104990.0,0.89603474]
[1748591701318,0.2315167,105000.0,104990.0,0.07703474]
[1748591701535,0.2315167,105000.0,104990.0,0.43564296]
[1748591702613,0.2305167,105000.0,104990.0,0.43264296]
[1748591703066,0.2315167,105000.0,104990.0,0.43464296]
[1748591703278,0.2315167,105000.0,104990.0,0.12664296]
[1748591703498,0.2315167,105000.0,104990.0,0.43432296]
[1748591703710,0.2305167,105000.0,104990.0,0.42832296]
[1748591704136,0.2305167,105000.0,104990.0,0.43332296]
[1748591704357,0.2315167,105000.0,104990.0,0.43332296]
[1748591704817,0.2315167,105000.0,104990.0,0.12564296]
[1748591705036,0.2315167,105000.0,104990.0,0.43308296]
[1748591705498,0.2315167,105000.0,104990.0,0.43296296]
[1748591705717,0.2315167,105000.0,104990.0,0.43292296]
[1748591708566,0.04104051,105000.0,104990.0,0.69966949]
[1748591708786,0.02174051,105000.0,104990.0,0.8288212]
[1748591709001,0.00214051,105000.0,104990.0,0.8288212]
[1748591709649,0.00214051,105000.0,104990.0,0.8318668]
[1748591710484,0.00214051,105000.0,104990.0,0.83186669]
[1748591711117,0.00214051,105000.0,104990.0,2.10598369]
[1748591711327,0.00214051,105000.0,104990.0,1.47372808]
[1748591711748,0.00214051,105000.0,104990.0,1.32581908]
[1748591711955,0.00214051,105000.0,104990.0,1.13216908]
[1748591712186,0.00114051,105000.0,104990.0,1.12716908]
[1748591712841,0.00114051,105000.0,104990.0,1.13316908]
[1748591713060,0.00214051,105000.0,104990.0,1.13516908]
[1748591713287,0.01166368,105000.0,104990.0,1.13516908]
[1748591713518,0.02118694,105000.0,104990.0,1.14221334]
[1748591713960,0.04023409,105000.0,104990.0,1.14221334]
[1748591714213,0.03071047,105000.0,104990.0,1.14221334]
[1748591714434,0.04023409,105000.0,104990.0,1.14652853]
[1748591714654,0.04023409,105000.0,104990.0,1.13700445]
[1748591714874,0.04023409,105000.0,104990.0,1.12748019]
[1748591715129,0.04023409,105000.0,104990.0,1.13700445]
[1748591715339,0.23071082,105000.0,104990.0,1.12426986]
[1748591715550,0.23071082,105000.0,104990.0,0.71986986]
[1748591715770,0.23071082,105000.0,104990.0,1.12394986]
[1748591716231,0.02118667,105000.0,104990.0,1.13347394]
[1748591716457,0.22118747,105000.0,104990.0,1.09525618]
[1748591716683,0.22118747,105000.0,104990.0,1.03805313]
[1748591716897,0.21166412,105000.0,104990.0,0.82846965]
[1748591717127,0.21166412,105000.0,104990.0,0.42454965]
[1748591717366,0.22986412,105000.0,104990.0,0.53132965]
[1748591718031,0.0116635,105000.0,104990.0,1.38512886]
[1748591718250,0.20950415,105010.0,105000.0,0.0095238]
[1748591718465,0.20950415,105010.0,105000.0,0.29409929]
[1748591718672,0.19998171,105010.0,105000.0,0.0940993]
[1748591719565,0.20098171,105010.0,105000.0,0.0990993]
[1748591720446,0.23888171,105010.0,105000.0,0.1040993]
[1748591720680,0.23988171,105010.0,105000.0,0.5075793]
[1748591720890,0.23988171,105010.0,105000.0,0.28773107]
[1748591721121,0.23988171,105010.0,105000.0,0.09859712]
[1748591721348,0.23988171,105010.0,105000.0,0.41688535]
[1748591721556,0.23988171,105010.0,105000.0,0.01304535]
[1748591721784,0.23988171,105010.0,105000.0,0.51117054]
[1748591722007,0.23988171,105010.0,105000.0,0.51548052]
[1748591722230,0.23888171,105010.0,105000.0,0.57753207]
[1748591722458,0.23788171,105010.0,105000.0,0.57253207]
[1748591722674,0.23888171,105010.0,105000.0,0.57753207]
[1748591723096,0.23888171,105010.0,105000.0,0.17046048]
[1748591723311,0.23888171,105010.0,105000.0,0.49989395]
[1748591723751,0.23888171,105010.0,105000.0,0.19736554]
[1748591723960,0.23888171,105010.0,105000.0,0.49977395]
[1748591724168,0.23888171,105010.0,105000.0,0.50300554]
[1748591724622,0.21050461,105010.0,105000.0,0.50300554]
[1748591725068,0.21050461,105010.0,105000.0,0.56326661]
[1748591725278,0.21050461,105010.0,105000.0,0.56336661]
[1748591725982,0.1098121,105010.0,105000.0,0.93597095]
[1748591726203,0.12885708,105010.0,105000.0,0.94549475]
[1748591726415,0.13837998,105010.0,105000.0,0.93597095]
[1748591726627,0.12885708,105010.0,105000.0,0.93597095]
[1748591726844,0.01052217,105010.0,105000.0,1.14549447]
[1748591727062,0.21050266,105010.0,105000.0,1.14549465]
[1748591727279,0.20950266,105010.0,105000.0,1.1459028]
[1748591727497,0.22002529,105010.0,105000.0,1.24942615]
[1748591727715,0.001,105010.0,105000.0,1.24942552]
[1748591727934,0.01052226,105010.0,105000.0,1.24942552]
[1748591728144,0.01052226,105010.0,105000.0,1.24742552]
[1748591728365,0.001,105010.0,105000.0,1.24742552]
[1748591728585,0.001,105010.0,105000.0,1.25042552]
[1748591729680,0.00952154,105020.0,105010.0,0.21901538]
[1748591729913,0.00952154,105020.0,105010.0,1.53054833]
[1748591729914,0.00952136,105020.0,105010.0,1.53054833]
[1748591730123,0.01652272,105020.0,105010.0,1.53054833]
[1748591730305,0.22600598,105020.0,105010.0,1.20223395]
[1748591730555,0.2260058,105020.0,105010.0,1.21175685]
[1748591731049,0.20696263,105020.0,105010.0,1.4022149]
[1748591731258,0.21648426,105020.0,105010.0,1.20223395]
[1748591731468,0.21648426,105020.0,105010.0,1.20853525]
[1748591731689,0.21648426,105020.0,105010.0,1.21053525]
[1748591731915,0.20696263,105020.0,105010.0,1.21053525]
[1748591732163,0.19744118,105020.0,105010.0,1.21053525]
[1748591732384,0.20696263,105020.0,105010.0,1.21053525]
[1748591732592,0.19996127,105020.0,105010.0,1.63475585]
[1748591732830,0.2094829,105020.0,105010.0,1.20623395]
[1748591733047,0.19996127,105020.0,105010.0,1.52736385]
[1748591733264,0.19043991,105020.0,105010.0,1.51784095]
[1748591733499,0.20950281,105040.0,105020.0,0.19043947]
[1748591733715,0.00952027,105030.0,105020.0,1.71197906]
[1748591733925,0.00952027,105030.0,105020.0,1.56222806]
[1748591734139,0.19042178,105030.0,105020.0,1.52798465]
[1748591734357,0.19042178,105030.0,105020.0,0.80481565]
[1748591734358,0.20946322,105030.0,105020.0,0.80481565]
[1748591734579,0.22850457,105030.0,105020.0,0.79529366]
[1748591734788,0.21898358,105030.0,105020.0,0.79529366]
[1748591734996,0.22850457,105030.0,105020.0,0.79929366]
[1748591735214,0.23802565,105030.0,105020.0,0.80329366]
[1748591735423,0.22850457,105030.0,105020.0,0.80329366]
[1748591735863,0.20946358,105030.0,105020.0,0.49849366]
[1748591736071,0.20946358,105030.0,105020.0,0.40367766]
[1748591736282,0.24806358,105030.0,105020.0,0.80651766]
[1748591736508,0.24806358,105030.0,105020.0,0.40367766]
[1748591736729,0.24806358,105030.0,105020.0,0.19631795]
[1748591736970,0.24806358,105030.0,105020.0,0.09505395]
[1748591737213,0.24806358,105030.0,105020.0,0.007]
[1748591737691,0.24806358,105030.0,105020.0,0.4068]
[1748591738170,0.24806358,105030.0,105020.0,0.4048]
[1748591738630,0.24806358,105030.0,105020.0,0.4038]
[1748591738879,0.24806358,105030.0,105020.0,0.4028]